bitfinex/quotes_ETHUSD_20251110
["timestamp","ask_amount","ask_price","bid_price","bid_amount"]
[1762738070434,2.73770087,3652.7,3651.2,0.1887]
[1762738070435,0.25215663,3652.6,3651.2,0.1887]
[1762738070638,0.70895663,3652.6,3651.2,0.1887]
[1762738070940,0.70895663,3652.5,3650.8,0.1993]
[1762738071270,2.73800071,3652.3,3650.9,0.0273905]
[1762738071435,2.73820368,3652.1,3651.3,2.73868175]
[1762738071630,4.24994488,3652.2,3650.8,2.93842563]
[1762738071631,0.25234118,3652.0,3650.8,2.93842563]
[1762738071833,2.73828836,3652.0,3651.3,2.73872873]
[1762738072054,0.1952,3651.9,3651.2,2.73880088]
[1762738072274,0.1952,3651.9,3651.2,2.73882475]
[1762738072570,2.73852167,3651.7,3651.2,0.34893673]
[1762738072766,0.652,3651.9,3651.2,0.34893673]
[1762738072971,0.652,3651.9,3650.5,1.9357]
[1762738072972,0.4553,3651.3,3650.5,0.4567]
[1762738073272,0.4553,3651.3,3650.8,2.7391165]
[1762738073477,0.4553,3651.3,3650.8,3.33263174]
[1762738073635,1.259712,3652.6,3651.2,0.6917]
[1762738073836,0.1961,3653.0,3652.4,2.73792574]
[1762738073837,0.25270095,3652.5,3652.4,2.73792574]
[1762738074076,0.002,3653.0,3652.8,2.73762593]
[1762738074372,0.002,3653.0,3652.9,4.09245498]
[1762738074586,0.10951523,3656.0,3654.0,0.421]
[1762738074791,0.10951523,3656.0,3654.3,0.405504]
[1762738074935,2.73463137,3656.8,3654.4,0.37340652]
[1762738075263,0.4568,3656.9,3655.4,0.405504]
[1762738075491,0.1952,3657.2,3655.6,2.73552905]
[1762738075691,0.1952,3657.2,3655.5,0.54005302]
[1762738075692,0.4568,3657.1,3655.5,0.54005302]
[1762738075997,0.4568,3657.1,3655.6,0.693]
[1762738076200,1.0,3658.0,3655.7,0.72035454]
[1762738076418,0.1952,3657.5,3655.7,0.693]
[1762738076586,2.73463137,3656.8,3656.7,0.136]
[1762738076909,3.64673137,3656.8,3656.7,0.829]
[1762738077062,3.78273137,3656.8,3656.7,0.693]
[1762738077372,3.64673137,3656.8,3656.7,0.693]
[1762738077981,4.90644337,3656.8,3656.7,0.693]
[1762738078176,5.69006543,3656.8,3656.7,0.693]
[1762738078783,4.90644337,3656.8,3656.7,0.693]
[1762738078976,3.64673137,3656.8,3656.7,0.693]
[1762738079181,0.1952,3658.3,3656.7,1.114]
[1762738079506,0.652,3657.9,3656.7,0.693]
[1762738079709,0.1952,3656.8,3656.7,0.693]
[1762738079921,0.8172,3657.9,3657.0,0.405504]
[1762738079922,0.4568,3657.7,3657.0,0.405504]
[1762738080080,0.652,3658.6,3657.0,0.405504]
[1762738080263,0.1952,3658.6,3657.2,3.13976414]
[1762738080573,0.1952,3658.6,3657.4,0.405504]
[1762738080777,0.200088,3659.0,3657.9,2.73380901]
[1762738080975,0.004888,3659.0,3657.9,3.13931301]
[1762738081180,0.004888,3659.0,3657.9,5.23003082]
[1762738081373,0.004888,3659.0,3657.9,4.82002501]
[1762738081565,0.004888,3659.0,3657.9,6.03740481]
[1762738082607,0.004888,3659.0,3657.9,3.3035958]
[1762738082787,0.004888,3659.0,3657.9,5.60211047]
[1762738083410,0.004888,3659.0,3657.9,1.665216]
[1762738083566,0.004888,3659.0,3657.9,0.405504]
[1762738083767,0.196,3658.8,3657.9,0.405504]
[1762738084168,1.47,3658.0,3656.1,1.38165015]
[1762738084366,0.196,3657.4,3657.2,0.697]
[1762738084570,2.73425751,3657.3,3657.2,0.697]
[1762738084766,3.20425751,3657.3,3657.2,0.697]
[1762738085370,1.729712,3657.3,3655.2,0.1403]
[1762738085680,1.729712,3657.3,3655.4,2.73562276]
[1762738085681,2.73496037,3656.4,3655.4,2.73562276]
[1762738085887,1.259712,3657.1,3655.3,0.89983]
[1762738086097,0.196,3656.3,3655.3,0.89983]
[1762738086273,0.47,3656.2,3655.3,0.696]
[1762738086634,2.73567872,3655.4,3655.3,0.696]
[1762738086775,3.20567872,3655.4,3655.3,0.696]
[1762738087171,1.259712,3655.3,3653.3,2.73724896]
[1762738087377,0.1368,3654.2,3653.5,0.1368]
[1762738087608,2.73682258,3653.9,3653.5,0.1368]
[1762738087807,2.73679076,3654.0,3653.5,0.1368]
[1762738088028,0.196,3654.1,3653.5,0.1368]
[1762738088256,2.73702649,3653.6,3653.4,0.697]
[1762738088414,2.7371014,3653.5,3653.4,0.697]
[1762738088749,2.73747604,3653.0,3652.9,0.1368]
[1762738088898,0.47,3653.4,3652.9,0.696]
[1762738089104,2.87427604,3653.0,3652.9,0.696]
[1762738089653,1.259712,3652.7,3650.4,0.1403]
[1762738089801,1.259712,3652.7,3650.3,0.6755]
[1762738089802,1.259712,3652.1,3650.3,0.1826]
[1762738089996,2.73807568,3652.2,3650.5,0.697]
[1762738089997,0.405504,3652.2,3650.5,0.697]
[1762738090230,0.7214632,3652.1,3650.6,0.697]
[1762738090402,0.7214632,3652.1,3650.7,0.697]
[1762738090403,1.259712,3651.5,3650.7,0.697]
[1762738090599,2.73879622,3651.3,3650.8,0.697]
[1762738090935,0.40644998,3652.4,3650.8,1.1899]
[1762738090936,0.47,3652.4,3650.8,1.1899]
[1762738091233,2.73867601,3651.4,3650.8,0.697]
[1762738091398,2.73871387,3651.4,3650.8,0.697]
[1762738091596,0.47,3651.6,3650.8,0.697]
[1762738092300,2.73874204,3651.4,3650.8,0.697]
[1762738092523,0.47,3651.6,3650.8,0.697]
[1762738092700,2.93391288,3652.5,3650.8,0.697]
[1762738092902,1.259712,3652.1,3650.8,0.697]
[1762738093323,2.73853862,3651.6,3650.8,0.697]
[1762738093526,0.47,3652.0,3650.8,0.697]
[1762738093832,3.99771271,3652.3,3650.8,0.697]
[1762738093833,0.47,3651.9,3650.8,0.697]
[1762738094375,1.259712,3651.7,3650.8,0.697]
[1762738094536,2.73863861,3651.5,3650.8,1.04062595]
[1762738094742,2.73869057,3651.4,3650.8,1.04062595]
[1762738094935,2.93474821,3651.4,3650.8,1.04062595]
[1762738095839,0.196,3651.4,3650.8,0.697]
[1762738096053,3.84126216,3652.7,3650.8,0.697]
[1762738096054,0.405504,3652.7,3650.8,0.697]
[1762738096255,1.729712,3652.3,3651.3,2.73871019]
[1762738096460,0.47,3652.3,3650.8,0.697]
[1762738096729,2.73846174,3651.7,3650.8,0.697]
[1762738096929,2.73846174,3651.7,3650.9,2.73899069]
[1762738097129,2.73830061,3651.9,3650.9,0.34359907]
[1762738097330,1.259712,3651.9,3651.2,2.73877809]
[1762738097652,2.73845728,3651.7,3650.9,2.73901884]
[1762738097836,2.73836614,3651.9,3651.1,2.73883387]
[1762738098048,0.47,3652.0,3650.8,0.697]
[1762738098472,1.259712,3651.8,3650.8,0.697]
[1762738098673,2.73905064,3650.9,3650.8,0.697]
[1762738098972,2.93505064,3650.9,3650.8,0.697]
[1762738099172,0.196,3650.9,3650.8,0.697]
[1762738099375,0.47,3651.3,3650.8,0.697]
[1762738099561,0.1368,3651.5,3650.9,2.76643533]
[1762738099771,0.1368,3651.5,3650.9,0.0273905]
[1762738099963,1.01806307,3653.1,3651.0,0.4929]
[1762738100267,0.1368,3652.2,3651.7,2.7384347]
[1762738100453,0.1368,3652.2,3651.8,0.697]
[1762738100655,0.1368,3652.2,3651.8,3.43535148]
[1762738100867,0.47,3653.3,3651.9,0.4929]
[1762738101072,2.73761012,3652.9,3651.9,0.4929]
[1762738101271,1.259712,3653.0,3652.3,2.73799284]
[1762738101480,0.196,3653.1,3652.3,2.73799284]
[1762738101648,2.73754244,3653.0,3651.9,0.4929]
[1762738101851,1.455712,3653.1,3651.9,0.4929]
[1762738101852,0.196,3653.1,3652.0,0.13725]
[1762738102352,1.259712,3652.9,3652.2,2.73805455]
[1762738102546,0.196,3653.1,3652.0,0.13725]
[1762738102753,2.93345159,3653.1,3652.4,2.73786279]
[1762738102974,2.7375059,3653.0,3652.5,0.696]
[1762738103282,2.73777583,3652.6,3652.5,0.696]
[1762738103596,4.19348783,3652.6,3652.5,0.696]
[1762738103756,2.73839263,3651.8,3651.1,2.73887925]
[1762738103953,2.73785078,3652.5,3651.1,2.73887925]
[1762738103954,1.729712,3652.5,3651.1,0.54779273]
[1762738104260,1.259712,3652.2,3651.2,0.696]
[1762738104459,1.259712,3652.2,3650.5,0.6755]
[1762738104460,0.47,3652.4,3651.3,0.653]
[1762738104660,0.47,3652.4,3651.1,2.73889601]
[1762738104661,2.73830495,3651.9,3651.4,0.696]
[1762738104861,2.73824523,3652.0,3651.5,0.696]
[1762738105062,2.73815065,3652.1,3651.5,0.696]
[1762738105488,0.47,3652.3,3651.5,0.696]
[1762738105655,2.73835909,3651.9,3651.5,0.696]
[1762738105855,2.73841066,3651.8,3651.5,0.696]
[1762738106078,0.47,3652.3,3651.5,0.696]
[1762738106079,1.729712,3652.3,3651.5,0.696]
[1762738106275,2.73839427,3651.8,3651.5,0.696]
[1762738106591,0.47,3652.3,3651.5,0.696]
[1762738106961,1.259712,3652.1,3651.5,0.696]
[1762738107154,1.729712,3652.3,3651.5,0.696]
[1762738107359,2.73829087,3652.0,3651.5,0.696]
[1762738107684,0.47,3652.3,3651.5,0.696]
[1762738107889,1.259712,3652.1,3651.5,0.696]
[1762738108073,2.73815589,3652.1,3651.5,0.696]
[1762738108390,0.47,3652.3,3651.5,0.696]
[1762738108602,0.47,3652.3,3651.5,0.697]
[1762738108982,1.729712,3652.3,3651.5,3.43557857]
[1762738109220,2.7381496,3652.2,3651.5,3.43557857]
[1762738109395,0.196,3652.6,3651.5,3.43557857]
[1762738109396,0.196,3652.6,3651.6,0.02738525]
[1762738109692,0.47,3653.2,3651.6,0.4929]
[1762738109896,2.73797706,3652.4,3651.6,0.4929]
[1762738110067,1.259712,3652.9,3651.5,0.697]
[1762738110390,2.73797587,3652.4,3651.5,3.43559303]
[1762738110589,3.20767934,3652.8,3651.5,0.697]
[1762738110794,2.87474745,3652.4,3651.8,0.1368]
[1762738110961,0.1368,3652.4,3651.9,2.73829989]
[1762738111158,1.259712,3653.8,3651.9,2.73829989]
[1762738111159,2.73782931,3652.6,3652.1,0.1368]
[1762738111786,0.1368,3652.7,3652.3,0.1368]
[1762738111787,1.259712,3652.7,3652.3,0.1368]
[1762738111986,0.1368,3652.9,3652.3,0.1368]
[1762738112358,2.73792574,3652.4,3652.3,0.1368]
[1762738112556,2.73792574,3652.4,3652.3,0.695]
[1762738112757,0.1368,3652.7,3652.3,0.695]
[1762738113006,2.73792574,3652.4,3652.3,0.695]
[1762738113407,0.1368,3652.7,3652.3,0.695]
[1762738113888,0.6341,3652.7,3652.3,0.695]
[1762738114096,2.73792574,3652.4,3652.3,0.695]
[1762738114429,0.196,3653.1,3652.3,0.695]
[1762738114595,2.73852557,3651.6,3651.5,0.001]
[1762738114798,4.44048683,3651.6,3651.5,0.001]
[1762738115123,4.93778683,3651.6,3651.5,0.001]
[1762738115688,3.99831257,3651.5,3649.2,2.1183]
[1762738116028,3.99831257,3651.5,3649.2,1.6606]
[1762738116029,1.259712,3650.7,3649.2,1.6606]
[1762738116196,0.25364926,3650.6,3649.5,2.74003719]
[1762738116401,2.99300003,3650.5,3649.6,0.69353706]
[1762738116620,2.99307932,3650.4,3649.6,0.69353706]
[1762738116822,0.25364926,3650.3,3649.3,1.1537]
[1762738117011,0.25364926,3650.2,3649.4,0.48510176]
[1762738117209,0.6859,3650.9,3649.7,2.73989857]
[1762738117210,0.25364926,3650.1,3649.7,2.73989857]
[1762738117411,0.25364926,3650.0,3649.8,0.54799999]
[1762738117612,0.6859,3650.9,3649.3,0.696]
[1762738117613,0.25364926,3649.9,3649.3,0.696]
[1762738117812,0.25364926,3649.8,3649.3,0.696]
[1762738118121,0.25364926,3649.7,3649.4,2.74013711]
[1762738118322,0.25364926,3649.6,3649.4,2.74013711]
[1762738118525,0.25364926,3649.5,3649.4,2.74013711]
[1762738118732,0.25364926,3649.5,3649.3,0.696]
[1762738119026,0.25538558,3649.4,3649.3,4.69593467]
[1762738119232,0.25538558,3649.4,3649.3,1.955712]
[1762738119428,0.25538558,3649.4,3649.3,2.74513125]
[1762738119635,2.99563705,3649.4,3648.2,2.74107713]
[1762738119929,0.25538558,3649.3,3648.7,2.74064839]
[1762738120124,0.25538558,3649.2,3648.6,2.74075659]
[1762738120289,0.25538558,3649.1,3648.7,0.27417566]
[1762738120495,0.25538558,3649.0,3648.8,2.92151939]
[1762738120697,0.25538558,3648.9,3648.8,0.1809]
[1762738121102,0.25538558,3648.9,3648.6,0.405504]
[1762738121293,2.74019396,3649.4,3648.6,3.14625603]
[1762738121502,2.74035166,3649.2,3648.7,0.3604956]
[1762738121732,0.2550682,3649.1,3648.5,2.74184418]
[1762738121935,0.03799046,3649.0,3648.5,0.001]
[1762738122137,2.74041451,3649.1,3648.5,0.001]
[1762738122506,0.4973,3649.6,3648.5,0.001]
[1762738122934,2.74038839,3649.2,3648.5,0.001]
[1762738123135,0.4973,3649.6,3648.5,0.001]
[1762738123339,2.74076195,3648.7,3648.5,0.001]
[1762738123637,0.1886,3648.6,3648.5,0.001]
[1762738123811,2.92937728,3648.6,3648.5,0.001]
[1762738124144,0.1886,3648.6,3648.5,0.001]
[1762738124303,0.1886,3649.0,3648.5,0.001]
[1762738124504,0.1368,3648.7,3648.5,0.001]
[1762738124730,0.4973,3648.9,3648.5,0.001]
[1762738124901,0.1368,3648.7,3648.5,0.001]
[1762738125822,2.73922681,3650.7,3648.6,0.27418556]
[1762738125823,0.1368,3649.1,3648.6,0.27418556]
[1762738126035,2.74048406,3649.0,3648.6,0.27418556]
[1762738126209,2.74048406,3649.0,3648.5,0.001]
[1762738126410,1.259712,3649.4,3648.5,0.001]
[1762738126808,0.4973,3649.6,3648.5,0.001]
[1762738127026,0.4973,3649.6,3648.6,0.27419248]
[1762738127217,2.74016887,3649.5,3648.6,2.7407654]
[1762738127414,2.74021231,3649.4,3648.6,2.74077728]
[1762738127821,2.74014782,3649.5,3648.5,0.001]
[1762738128035,2.7403152,3649.3,3648.5,0.001]
[1762738128236,0.4973,3649.6,3648.5,0.001]
[1762738128237,0.4973,3649.6,3648.6,0.27418833]
[1762738128457,2.74010138,3649.5,3648.5,0.001]
[1762738128753,2.74061351,3648.9,3648.5,0.001]
[1762738128946,2.74044639,3649.1,3648.5,0.001]
[1762738129256,2.74032968,3649.2,3648.5,0.001]
[1762738129555,1.710712,3649.5,3648.5,0.54929573]
[1762738129758,2.74070423,3648.7,3648.5,0.001]
[1762738129930,2.74064766,3648.8,3648.5,0.001]
[1762738130261,0.189,3648.9,3648.5,0.001]
[1762738130461,2.74077728,3648.6,3648.5,0.001]
[1762738131158,2.74065152,3648.8,3648.5,0.001]
[1762738131357,2.74071535,3648.7,3648.5,0.001]
[1762738131671,2.74077728,3648.6,3648.5,0.001]
[1762738132767,3.15967728,3648.6,3648.5,0.001]
[1762738132925,5.32699756,3648.6,3648.5,0.001]
[1762738133943,5.58096196,3648.6,3648.5,0.001]
[1762738136232,2.74107779,3648.2,3648.1,0.001]
[1762738136452,4.85338009,3648.2,3648.1,0.001]
[1762738136657,5.70988409,3648.2,3648.1,0.001]
[1762738136888,4.40659436,3647.8,3647.7,0.001]
[1762738137173,5.07495876,3647.8,3647.7,0.001]
[1762738137467,6.16229922,3647.8,3647.7,0.001]
[1762738139071,6.1619107,3647.8,3647.7,0.001]
[1762738139312,5.7564067,3647.8,3647.7,0.001]
[1762738141375,6.1619107,3647.8,3647.7,0.001]
[1762738141787,5.7564067,3647.8,3647.7,0.001]
[1762738142745,5.7564067,3647.8,3645.5,1.481]
[1762738142746,2.74303269,3645.6,3645.5,0.001]
[1762738142962,3.48814055,3645.6,3645.5,0.001]
[1762738143146,3.48814055,3645.6,3645.1,0.001]
[1762738143147,2.74333369,3645.2,3645.1,0.001]
[1762738143347,4.93949092,3645.2,3645.1,0.001]
[1762738143552,2.74363476,3644.8,3643.1,0.001]
[1762738143770,4.62895462,3644.8,3643.1,0.001]
[1762738143970,5.10225462,3644.8,3643.1,0.001]
[1762738144174,5.87895543,3644.8,3643.1,0.001]
[1762738144483,5.87895543,3644.8,3643.4,0.4513]
[1762738145367,4.62895462,3644.8,3643.4,0.4513]
[1762738145575,4.62895462,3644.8,3643.5,2.7445971]
[1762738145757,4.62895462,3644.8,3644.1,0.1515]
[1762738145936,4.25735462,3644.8,3644.1,0.1515]
[1762738146137,0.25400786,3644.8,3644.2,0.4513]
[1762738146455,2.74350288,3645.0,3644.2,0.4513]
[1762738146648,2.74356957,3644.9,3644.2,0.4513]
[1762738146867,0.4788,3645.5,3644.2,0.4513]
[1762738147195,0.1368,3644.9,3644.5,0.4513]
[1762738147392,0.1368,3644.9,3644.8,2.74363476]
[1762738147558,2.74214694,3646.8,3644.8,2.74363476]
[1762738147559,0.1368,3645.2,3645.0,2.74341226]
[1762738147760,2.74288027,3645.9,3644.9,0.4513]
[1762738147761,2.74285202,3645.9,3644.9,0.4513]
[1762738147960,0.1368,3645.5,3645.1,0.6852]
[1762738148269,0.1368,3645.5,3645.2,0.1929]
[1762738148470,2.74333369,3645.2,3644.9,0.1368]
[1762738148790,0.1368,3645.1,3644.7,0.001]
[1762738149160,0.1368,3645.1,3644.7,0.4523]
[1762738149362,2.88022546,3645.1,3644.7,0.001]
[1762738149593,0.1368,3645.1,3644.7,0.001]
[1762738149761,0.1368,3645.1,3645.0,0.4923]
[1762738150160,2.74363476,3644.8,3644.7,0.001]
[1762738150414,2.99708538,3644.8,3644.7,0.001]
[1762738150652,2.99708328,3644.8,3644.7,0.001]
[1762738150910,2.74304891,3645.6,3644.7,0.001]
[1762738150911,0.4788,3645.7,3644.7,0.4933]
[1762738151106,1.51315281,3645.6,3644.7,0.4933]
[1762738151267,2.74363476,3644.8,3644.7,0.4933]
[1762738151894,3.14825621,3646.0,3644.7,0.9446]
[1762738151895,2.74339342,3645.2,3644.7,0.9446]
[1762738152096,2.74355824,3645.0,3644.9,0.4923]
[1762738152282,2.74363476,3644.8,3644.7,0.4523]
[1762738152690,2.99707229,3644.8,3644.7,0.001]
[1762738155024,0.25343753,3644.8,3644.7,0.001]
[1762738155199,3.36427229,3644.8,3644.7,0.001]
[1762738155401,3.84187229,3644.8,3644.7,0.001]
[1762738155605,5.50708829,3644.8,3644.7,0.001]
[1762738158699,5.50708829,3644.8,3644.7,0.001]
[1762738160601,6.20108829,3644.8,3644.7,0.001]
[1762738160916,7.09555497,3644.8,3644.7,0.001]
[1762738161132,6.40155497,3644.8,3644.7,0.001]
[1762738163009,6.98730858,3644.8,3644.7,0.001]
[1762738163330,7.68154974,3644.8,3644.7,0.001]
[1762738163700,6.98754974,3644.8,3644.7,0.001]
[1762738163902,7.09555497,3644.8,3644.7,0.001]
[1762738164135,7.68183645,3644.8,3644.7,0.001]
[1762738164427,7.68183645,3644.8,3644.3,1e-08]
[1762738164428,3.1542399,3644.4,3644.3,1e-08]
[1762738164628,4.66738943,3644.4,3644.3,1e-08]
[1762738164931,5.14618943,3644.4,3644.3,1e-08]
[1762738165522,4.66738943,3644.4,3644.3,1e-08]
[1762738166546,5.14618943,3644.4,3644.3,1e-08]
[1762738166702,5.91380573,3644.4,3644.3,1e-08]
[1762738167237,6.50122124,3644.4,3644.3,1e-08]
[1762738167444,5.02470173,3644.4,3644.3,1e-08]
[1762738167627,4.25708543,3644.4,3644.3,1e-08]
[1762738168124,4.66258943,3644.4,3644.3,1e-08]
[1762738168445,4.25708543,3644.4,3644.3,1e-08]
[1762738168654,4.62428543,3644.4,3644.3,1e-08]
[1762738169151,4.25708543,3644.4,3644.3,1e-08]
[1762738169903,5.03646956,3644.4,3644.3,1e-08]
[1762738170720,0.25343753,3644.4,3644.3,0.49230001]
[1762738171034,0.25343753,3644.4,3644.3,0.94360001]
[1762738171764,2.99737343,3644.4,3644.3,0.94360001]
[1762738172121,0.25343753,3644.4,3644.3,0.94360001]
[1762738172452,2.99737343,3644.4,3644.3,0.49230001]
[1762738173146,2.99737343,3644.4,3644.3,0.96150001]
[1762738174521,3.13417343,3644.4,3644.3,0.96150001]
[1762738178136,3.13417343,3644.4,3644.3,0.49230001]
[1762738178567,3.13417343,3644.4,3644.3,0.96150001]
[1762738178864,4.09877018,3644.4,3644.3,1e-08]
[1762738179150,4.31224294,3644.4,3644.3,1e-08]
[1762738179719,4.68904294,3644.4,3644.3,1e-08]
[1762738181263,4.31224294,3644.4,3644.3,1e-08]
[1762738181418,4.31224294,3644.4,3644.3,0.46490001]
[1762738181618,3.58764619,3644.4,3644.3,0.93410001]
[1762738182262,0.25343753,3644.4,3644.3,0.93410001]
[1762738182559,2.99737343,3644.4,3644.3,0.93410001]
[1762738182924,2.99937343,3644.4,3644.3,0.93410001]
[1762738185060,0.25543753,3644.4,3644.3,0.93410001]
[1762738185356,2.99937343,3644.4,3644.3,0.46490001]
[1762738185550,2.99937343,3644.4,3644.3,0.93410001]
[1762738187757,0.25543753,3644.4,3644.3,0.93410001]
[1762738191367,2.99937343,3644.4,3644.3,0.93410001]
[1762738192372,0.25543753,3644.4,3644.3,0.93410001]
[1762738193970,2.99937343,3644.4,3644.3,0.46490001]
[1762738194484,0.25847815,3644.4,3644.3,0.93120001]
[1762738197585,0.25847815,3644.4,3644.3,0.46490001]
[1762738198380,3.00241405,3644.4,3644.3,1e-08]
[1762738198551,3.8651049,3644.4,3644.3,1e-08]
[1762738199388,4.2113049,3644.4,3644.3,1e-08]
[1762738199551,4.4567063,3644.4,3644.3,1e-08]
[1762738200211,5.3013063,3644.4,3644.3,1e-08]
[1762738200374,4.8029063,3644.4,3644.3,1e-08]
[1762738200578,4.9566063,3644.4,3644.3,1e-08]
[1762738200808,5.3028063,3644.4,3644.3,1e-08]
[1762738201154,6.68511519,3644.4,3644.3,1e-08]
[1762738201389,6.9680223,3644.4,3644.3,1e-08]
[1762738201888,4.0039491,3644.0,3643.9,0.001]
[1762738202098,4.85552865,3644.0,3643.9,0.001]
[1762738202253,1.59078208,3644.0,3643.9,0.001]
[1762738202453,3.59231665,3644.0,3643.9,0.001]
[1762738203052,0.84807955,3644.0,3643.9,0.001]
[1762738203323,3.00071525,3644.0,3643.9,0.001]
[1762738204296,0.25647815,3644.0,3643.9,0.9723]
[1762738205315,0.25647815,3644.0,3643.9,0.001]
[1762738205316,3.00071525,3644.0,3643.9,0.001]
[1762738205724,0.25647815,3644.0,3643.9,0.9723]
[1762738206214,0.25647815,3644.0,3643.9,0.4918]
[1762738206365,0.25647815,3644.0,3643.9,0.9723]
[1762738207498,0.25647815,3644.0,3643.9,1.34397693]
[1762738207730,0.25647815,3644.0,3643.9,0.9723]
[1762738208268,0.25647815,3644.0,3643.9,0.4918]
[1762738208494,0.25647815,3644.0,3643.9,0.9723]
[1762738209822,0.002,3644.4,3644.3,2.74401119]
[1762738209976,0.002,3644.4,3644.3,5.08552719]
[1762738210182,0.002,3644.4,3644.3,6.65085991]
[1762738210396,0.002,3644.4,3644.3,6.6234198]
[1762738210760,0.002,3645.1,3645.0,4.40870022]
[1762738210870,0.002,3645.1,3645.0,4.89950022]
[1762738211208,0.002,3645.1,3645.0,5.8630605]
[1762738211426,0.59053576,3646.9,3645.8,4.00259422]
[1762738211582,0.25809476,3645.9,3645.8,4.52082304]
[1762738211780,0.25809476,3645.9,3645.8,2.367812]
[1762738213298,0.002,3645.9,3645.8,2.367812]
[1762738213607,0.25761036,3645.9,3645.8,0.9713]
[1762738214210,0.25761036,3645.9,3645.8,3.71418222]
[1762738214211,0.002,3645.9,3645.8,3.71418222]
[1762738214544,0.002,3645.9,3645.8,4.23902074]
[1762738214733,0.002,3645.9,3645.8,5.87680792]
[1762738215921,0.002,3645.9,3645.8,3.1339257]
[1762738216083,0.002,3645.9,3645.8,5.87680792]
[1762738216282,0.002,3645.9,3645.8,3.1339257]
[1762738216479,0.002,3645.9,3645.8,5.87680792]
[1762738217886,0.002,3645.9,3645.8,2.7284217]
[1762738218088,0.002,3645.9,3645.8,2.231012]
[1762738218314,0.002,3645.9,3645.4,0.1005]
[1762738218517,0.002,3645.9,3645.5,0.4805]
[1762738218725,0.002,3645.9,3645.6,2.74303034]
[1762738218923,0.002,3645.9,3645.6,1.259712]
[1762738219125,0.002,3645.9,3645.6,1.740212]
[1762738219317,0.002,3645.9,3645.6,0.4805]
[1762738219501,0.002,3645.9,3645.8,0.4908]
[1762738219701,0.002,3645.9,3645.4,1.360212]
[1762738219941,0.002,3645.9,3645.8,0.4908]
[1762738220237,0.002,3645.9,3645.4,0.581]
[1762738220439,0.002,3645.9,3645.8,0.4908]
[1762738221535,0.002,3645.9,3645.8,4.3408]
[1762738221741,0.002,3645.9,3645.8,3.85]
[1762738222811,0.002,3645.9,3645.8,4.8213]
[1762738223150,0.002,3645.9,3645.8,4.3408]
[1762738223741,0.002,3645.9,3645.8,5.68228299]
[1762738223948,0.002,3645.9,3645.8,5.84651181]
[1762738224145,0.002,3645.9,3645.8,6.08778699]
[1762738224508,0.002,3645.9,3645.8,3.34490477]
[1762738224710,0.002,3645.9,3645.8,6.08778699]
[1762738224924,0.002,3645.9,3645.8,8.97778699]
[1762738227467,0.002,3645.9,3645.8,0.4908]
[1762738227768,0.002,3645.9,3645.8,1.750512]
[1762738227981,0.002,3645.9,3645.4,0.1005]
[1762738228182,0.002,3645.9,3645.5,2.74309717]
[1762738228335,0.2011,3645.9,3645.0,0.4805]
[1762738228666,0.2011,3645.9,3645.1,10.90115]
[1762738228832,0.2011,3645.9,3645.2,1.259712]
[1762738229267,0.2011,3645.9,3645.2,4.00298113]
[1762738229934,0.2011,3645.9,3645.5,1.259712]
[1762738230277,0.2011,3645.9,3645.2,1.259712]
[1762738230278,0.2011,3645.9,3645.2,4.00303091]
[1762738230437,0.2011,3645.9,3645.2,2.79818009]
[1762738230632,0.2011,3645.9,3645.3,3.85]
[1762738230832,0.2011,3645.9,3645.4,1.259712]
[1762738231058,0.002,3645.9,3645.8,0.4908]
[1762738231262,0.002,3645.9,3645.5,3.85]
[1762738231472,0.9063532,3645.9,3645.5,3.85]
[1762738231781,0.6518,3645.9,3645.5,3.85]
[1762738231946,0.2011,3645.9,3645.5,3.85]
[1762738232152,0.25460158,3645.8,3645.5,3.85]
[1762738232347,0.2011,3645.9,3645.5,3.85]
[1762738232557,0.25481642,3645.8,3645.5,3.85]
[1762738232870,0.002,3645.9,3645.5,3.85]
[1762738233171,0.4527,3645.6,3645.5,5.109712]
[1762738233392,1.09801458,3645.6,3645.5,3.85]
[1762738233598,1.09801458,3645.6,3645.0,3.85]
[1762738233807,0.25481458,3645.5,3645.1,3.85]
[1762738234009,0.0039,3645.2,3644.9,3.9868]
[1762738234312,0.25481458,3645.1,3644.9,3.9868]
[1762738234516,0.25481458,3645.0,3644.9,3.9868]
[1762738234858,0.25481458,3645.0,3644.9,4.92111449]
[1762738235086,0.002,3645.9,3645.0,1.259712]
[1762738235359,0.25535451,3645.8,3645.3,2.74325605]
[1762738235585,0.25535451,3645.7,3645.6,4.00273117]
[1762738235770,0.002,3645.9,3645.6,4.00273117]
[1762738235771,0.002,3645.9,3645.8,4.47119422]
[1762738235960,0.002,3645.9,3645.8,1.728312]
[1762738236159,0.2573281,3645.9,3645.8,1.728312]
[1762738236363,0.2573281,3645.9,3645.8,4.47119422]
[1762738236667,0.2573281,3645.9,3645.8,1.728312]
[1762738236863,0.2573281,3645.9,3645.8,2.49807684]
[1762738237520,0.2573281,3645.9,3645.8,5.24095906]
[1762738237994,0.2573281,3645.9,3645.8,5.72325906]
[1762738238377,0.2573281,3645.9,3645.8,6.12876306]
[1762738238764,0.2573281,3645.9,3645.8,2.49807684]
[1762738238966,0.2573281,3645.9,3645.8,1.728312]
[1762738239182,0.2573281,3645.9,3645.8,4.47119422]
[1762738239802,0.2573281,3645.9,3645.8,1.259712]
[1762738240799,0.2573281,3645.9,3645.5,0.001]
[1762738240800,2.74303269,3645.6,3645.5,0.001]
[1762738241001,3.00296079,3645.6,3645.5,0.001]
[1762738241300,3.46866079,3645.6,3645.5,0.001]
[1762738241480,0.7256281,3645.6,3645.5,0.001]
[1762738241874,0.2599281,3645.6,3645.5,0.001]
[1762738243007,0.7256281,3645.6,3645.5,0.001]